bitfinex/quotes_ETHUSD_20250404
["timestamp","ask_amount","ask_price","bid_price","bid_amount"]
[1743762894402,0.05574278,1792.8,1792.3,5.5792]
[1743762894747,5.63364278,1792.8,1792.3,5.5792]
[1743762895302,5.63364278,1792.8,1792.2,6.4167]
[1743762895303,6.06232703,1792.8,1792.2,6.4167]
[1743762895525,0.05574278,1792.8,1792.3,0.05578825]
[1743762895720,16.09927,1793.0,1792.3,0.05578825]
[1743762895721,16.09927,1793.0,1792.4,5.57899]
[1743762895922,16.09927,1793.0,1792.4,11.15789]
[1743762896128,5.63353278,1792.9,1792.3,5.57939]
[1743762896311,5.63352278,1792.9,1792.3,11.15854]
[1743762896515,0.05574278,1792.9,1792.4,6.694844]
[1743762896733,5.63332278,1792.9,1792.4,1.115854]
[1743762896938,9.49855715,1792.8,1792.2,6.41666]
[1743762897103,5.57869,1792.6,1792.2,0.8371]
[1743762897305,7.483,1792.5,1792.2,0.8371]
[1743762897701,16.05718,1792.7,1792.3,0.05579014]
[1743762897907,3.0,1792.9,1792.3,0.64725801]
[1743762898105,26.755,1793.6,1792.8,5.57765]
[1743762898106,7.7688134,1793.2,1792.8,5.57765]
[1743762898862,7.7688134,1793.2,1792.9,5.57744]
[1743762899009,0.2898134,1793.2,1793.0,5.5771]
[1743762899209,11.38859715,1793.4,1793.0,5.5771]
[1743762899210,3.0,1793.3,1793.0,5.5771]
[1743762899437,7.462,1793.4,1793.0,5.5771]
[1743762899606,9.98059715,1793.9,1793.2,0.8509]
[1743762899807,11.37759715,1793.9,1793.2,0.8509]
[1743762900327,10.13412715,1794.2,1793.7,5.57506]
[1743762900530,0.05574278,1794.2,1793.8,5.57463]
[1743762900721,3.92059715,1794.3,1793.8,5.57463]
[1743762900916,7.455,1794.4,1793.8,1.114967]
[1743762901143,7.455,1794.4,1794.1,0.8239]
[1743762901648,7.455,1794.4,1794.1,6.39772]
[1743762902017,3.92059715,1794.6,1794.2,5.5735]
[1743762902218,0.05574278,1794.8,1794.1,0.8239]
[1743762902562,0.05,1794.9,1794.6,6.41111]
[1743762902741,0.05,1794.9,1794.7,5.57177]
[1743762902946,0.05,1794.9,1794.8,5.57165]
[1743762903151,0.05,1794.9,1794.7,5.57192]
[1743762903367,0.05,1794.9,1794.7,0.05571066]
[1743762903668,0.10574278,1794.9,1794.3,6.37124]
[1743762903878,8.57213,1794.7,1794.0,5.57395]
[1743762904040,7.49774278,1794.6,1794.0,5.57391]
[1743762904789,3.0,1794.4,1793.9,6.37272]
[1743762905090,5.57323,1794.3,1793.6,5.5751]
[1743762905292,0.05574278,1794.2,1793.5,0.8292]
[1743762905445,3.0,1794.3,1793.8,5.5746]
[1743762905644,3.0,1794.3,1793.9,0.05573478]
[1743762905844,3.0,1794.3,1793.8,6.13763423]
[1743762906080,3.0,1794.3,1793.8,0.56303423]
[1743762906243,3.0,1794.6,1794.0,5.57391]
[1743762906440,16.05105278,1794.6,1794.0,0.8484]
[1743762906679,10.417,1794.6,1794.0,7.064786]
[1743762906840,10.417,1794.6,1794.1,5.629499]
[1743762907040,10.417,1794.6,1794.1,5.57377]
[1743762907392,30.68275439,1794.7,1794.2,5.62921683]
[1743762907685,30.68275439,1794.7,1794.2,0.05572683]
[1743762907838,0.05574278,1794.6,1794.0,12.638816]
[1743762908034,0.05574278,1794.6,1794.1,1.2638816]
[1743762908238,0.05574278,1794.6,1794.1,6.8377016]
[1743762908440,36.25473439,1794.7,1794.1,6.8377016]
[1743762908636,3.92675439,1794.4,1793.7,0.821]
[1743762908884,16.01700278,1794.3,1793.7,0.821]
[1743762909042,3.92675439,1794.1,1793.4,0.821]
[1743762909249,3.98249717,1794.1,1793.5,5.5755]
[1743762909448,3.98249717,1794.1,1793.6,5.57523]
[1743762909660,3.98249717,1794.1,1793.5,5.5755]
[1743762909954,9.12433,1794.0,1793.2,5.57653]
[1743762910141,0.05574278,1793.9,1793.3,5.57613]
[1743762910338,0.05574278,1793.9,1793.3,11.15232]
[1743762910561,0.05574278,1793.9,1793.1,0.8455]
[1743762910760,4.38074689,1794.1,1793.6,5.57524]
[1743762910962,0.05574278,1794.1,1793.6,6.132764]
[1743762911174,0.05574278,1794.1,1793.6,1.354724]
[1743762911379,3.98376988,1794.1,1793.6,0.7972]
[1743762911677,6.12426,1794.0,1793.3,6.39753]
[1743762911883,6.12426,1794.0,1793.4,5.57599]
[1743762911884,0.05574278,1793.9,1793.4,5.57599]
[1743762912173,0.64,1793.7,1793.1,11.15358]
[1743762912381,8.05074278,1793.7,1793.1,6.774218]
[1743762912563,8.05074278,1793.7,1793.2,5.57647]
[1743762912770,0.55,1793.6,1793.1,6.774248]
[1743762913084,8.05074278,1793.7,1793.1,6.774248]
[1743762913243,8.05074278,1793.7,1792.8,5.57778]
[1743762913244,3.0,1793.5,1792.9,5.57752]
[1743762913443,3.05574278,1793.5,1792.8,5.57786]
[1743762913674,8.63156278,1793.5,1792.8,5.5776]
[1743762913875,0.64,1793.2,1792.5,11.97239]
[1743762914082,7.987,1793.2,1792.8,5.57773]
[1743762914381,7.987,1793.2,1792.5,7.591209]
[1743762914577,13.56374,1793.2,1792.5,7.591209]
[1743762914776,19.14058,1793.2,1792.5,7.591209]
[1743762915081,3.0,1793.0,1792.5,0.8152]
[1743762915381,12.56101988,1793.0,1792.3,5.5793]
[1743762915549,12.56101988,1793.0,1792.4,5.57898]
[1743762915550,6.9280271,1793.0,1792.4,5.57898]
[1743762915750,6.98376988,1793.0,1792.4,6.694817]
[1743762915983,12.56104988,1793.0,1792.4,6.694817]
[1743762916183,5.578,1792.8,1792.2,0.8277]
[1743762916350,0.64,1792.8,1792.3,5.57928]
[1743762916677,7.5680271,1793.0,1792.5,5.57855]
[1743762916883,7.5680271,1793.0,1792.2,6.40742]
[1743762917190,0.64,1793.6,1793.5,5.57568]
[1743762917391,0.7052,1793.9,1793.1,6.37265]
[1743762917544,3.9280271,1794.2,1793.7,5.57481]
[1743762917744,0.05574278,1794.1,1793.3,5.57631]
[1743762917939,0.05574278,1794.1,1793.6,5.57529]
[1743762918180,0.05574278,1794.1,1793.5,5.57562]
[1743762918352,0.05574278,1794.1,1793.6,0.557562]
[1743762919572,0.7052,1794.3,1793.7,0.05574435]
[1743762919779,0.7052,1794.3,1793.7,5.63077435]
[1743762919983,0.7052,1794.3,1793.7,5.57503]
[1743762920160,0.7052,1794.3,1793.8,0.557503]
[1743762921747,0.7052,1794.8,1794.4,5.57259]
[1743762921985,0.7052,1794.8,1794.5,5.57241]
[1743762922151,0.7052,1794.8,1794.7,5.57196]
[1743762922357,0.05,1794.9,1794.7,5.57196]
[1743762922660,0.05,1794.9,1794.8,5.57165]
[1743762922865,0.05,1794.9,1794.8,6.74172218]
[1743762923183,0.05,1794.9,1794.8,6.686011]
[1743762923880,0.05,1794.9,1794.8,1.114361]
[1743762924049,0.05,1794.9,1794.8,6.686011]
[1743762924699,0.05,1794.9,1794.8,1.114361]
[1743762924852,0.05,1794.9,1794.7,5.57171]
[1743762925175,0.05,1794.9,1794.7,11.1435]
[1743762925374,0.05,1794.9,1794.7,5.57171]
[1743762925551,0.05,1794.9,1794.8,5.57165]
[1743762926373,0.05,1794.9,1794.7,5.57171]
[1743762926570,0.05,1794.9,1794.6,6.44866]
[1743762926875,0.05,1794.9,1794.6,5.57204]
[1743762927408,0.05,1794.9,1794.7,5.57196]
[1743762927595,0.05,1794.9,1794.6,5.57204]
[1743762928305,0.05,1794.9,1794.4,0.8764]
[1743762928507,0.05,1794.9,1794.8,5.57165]
[1743762928705,0.05,1794.9,1794.8,6.69157089]
[1743762929086,0.05,1794.9,1794.8,7.52547089]
[1743762930197,0.05,1794.9,1794.8,6.40555]
[1743762930926,0.05,1794.9,1794.7,5.57183]
[1743762931118,0.05,1794.9,1794.8,5.57165]
[1743762931413,0.05,1794.9,1794.8,5.62735833]
[1743762931975,0.05,1794.9,1794.7,5.57183]
[1743762932306,0.05,1794.9,1794.6,6.4061]
[1743762932674,0.05,1794.9,1794.7,5.5719]
[1743762932879,0.05,1794.9,1794.7,11.14366]
[1743762933106,0.05,1794.9,1794.8,5.627359]
[1743762933313,0.05,1794.9,1794.7,6.769516]
[1743762933314,0.05,1794.9,1794.6,6.40616]
[1743762933514,0.05,1794.9,1794.6,5.57205]
[1743762933673,0.05,1794.9,1794.7,5.57195]
[1743762934130,0.05,1794.9,1794.8,5.57165]
[1743762934278,0.05,1794.9,1794.8,6.68601]
[1743762934890,0.05,1794.9,1794.6,5.57223]
[1743762935119,0.05,1794.9,1794.3,6.45317]
[1743762935290,0.05,1794.9,1794.7,5.57189]
[1743762935702,0.05,1794.9,1794.7,11.14372]
[1743762935905,0.05,1794.9,1794.8,5.57165]
[1743762936440,0.05,1794.9,1794.8,7.62170269]
[1743762936621,0.05,1794.9,1794.8,7.565998]
[1743762936930,0.05,1794.9,1794.8,6.50735469]
[1743762937133,0.05,1794.9,1794.8,6.45165]
[1743762938118,0.05,1794.9,1794.8,6.50735141]
[1743762938516,0.05,1794.9,1794.8,6.45165]
[1743762938717,0.05,1794.9,1794.8,6.50735139]
[1743762938920,0.05,1794.9,1794.8,7.65956814]
[1743762940016,0.05,1794.9,1794.8,6.77956814]
[1743762940217,0.05,1794.9,1794.2,0.7978]
[1743762940432,0.05,1794.9,1794.5,5.57229]
[1743762940591,0.05,1794.9,1794.6,5.57211]
[1743762940936,0.05,1794.9,1794.8,5.57165]
[1743762941103,0.05,1794.9,1794.7,5.57192]
[1743762941641,0.05,1794.9,1794.8,5.57165]
[1743762941819,0.05,1794.9,1794.8,6.45365753]
[1743762942341,0.05,1794.9,1794.8,6.39795]
[1743762946019,1e-05,1794.9,1794.8,6.39795]
[1743762947457,1e-05,1794.9,1794.8,5.57165]
[1743762948256,1e-05,1794.9,1794.8,6.685998]
[1743762949859,1e-05,1794.9,1794.8,7.493298]
[1743762956023,1e-05,1794.9,1794.8,10.54898581]
[1743762956826,1e-05,1794.9,1794.8,10.493298]
[1743762958260,1e-05,1794.9,1794.8,10.5489837]
[1743762959430,1e-05,1794.9,1794.8,10.6489837]
[1743762959768,1e-05,1794.9,1794.8,10.64897751]
[1743762960434,1e-05,1794.9,1794.8,10.593298]
[1743762960754,1e-05,1794.9,1794.8,17.35898138]
[1743762960957,0.05,1795.9,1795.8,5.56854]
[1743762961259,0.05,1795.9,1795.8,5.62420969]
[1743762961683,0.05,1795.9,1795.8,5.56854]
[1743762962634,0.05,1795.9,1795.8,5.62420632]
[1743762962835,0.05,1795.9,1795.8,5.56854]
[1743762963035,0.05,1795.9,1795.8,7.42613639]
[1743762963581,0.7019,1796.5,1796.4,5.56668]
[1743762963944,0.7019,1796.5,1796.3,5.56695]
[1743762964266,0.7019,1796.5,1796.3,5.5669]
[1743762964474,0.7019,1796.5,1796.4,5.56668]
[1743762964907,0.7019,1796.5,1796.1,5.56747]
[1743762965108,0.7019,1796.5,1796.2,5.5673]
[1743762965417,0.05574278,1796.4,1795.9,5.56819]
[1743762965558,0.7019,1796.3,1796.0,5.56762]
[1743762965905,0.7019,1796.3,1796.2,5.5673]
[1743762966389,0.7019,1796.5,1796.1,11.13493]
[1743762966592,0.7019,1796.5,1796.2,5.56729]
[1743762967159,0.7019,1796.5,1796.2,11.13442]
[1743762967361,0.7019,1796.5,1796.3,5.56696]
[1743762967598,0.7019,1796.5,1796.2,5.56713]
[1743762969497,0.7019,1796.5,1796.2,11.13429]
[1743762969798,0.7019,1796.5,1796.0,5.56782]
[1743762970001,0.7019,1796.5,1796.1,5.56747]
[1743762970573,4.35702905,1796.5,1795.9,5.56816]
[1743762970786,0.7019,1796.3,1795.7,5.56866]
[1743762970989,0.75764278,1796.2,1795.7,5.5688]
[1743762971186,0.75764278,1796.2,1795.7,6.12562]
[1743762971462,1.1183997,1796.2,1795.9,5.56803]
[1743762971687,1.1183997,1796.2,1795.9,5.56812]
[1743762972200,1.1183997,1796.2,1795.7,6.12569]
[1743762972402,0.05574278,1796.1,1795.7,0.55688]
[1743762972702,1.17414248,1796.2,1795.8,5.62421943]
[1743762972873,1.17414248,1796.2,1795.8,6.79921037]
[1743762973074,1.1183997,1796.2,1795.8,6.79905037]
[1743762973501,1.1183997,1796.2,1796.0,5.56777]
[1743762973502,0.7019,1796.2,1796.0,5.56777]
[1743762973671,0.7019,1796.2,1796.1,5.56761]
[1743762973874,0.7019,1796.5,1796.2,5.56723]
[1743762974408,0.7019,1796.5,1796.1,5.56761]
[1743762974902,0.7019,1796.5,1796.1,11.13512]
[1743762975105,0.7019,1796.5,1796.2,5.56717]
[1743762975306,0.7019,1796.5,1796.1,12.248532]
[1743762975501,0.7019,1796.5,1796.1,6.681022]
[1743762975806,0.7019,1796.5,1796.2,5.6229561]
[1743762975975,0.7019,1796.5,1796.2,11.1901261]
[1743762976182,0.7019,1796.5,1796.3,1.11901261]
[1743762976415,0.7019,1796.5,1796.2,5.56717]
[1743762977080,0.7019,1796.5,1796.1,11.13516]
[1743762977286,0.7019,1796.5,1796.2,5.5673]
[1743762977896,0.7019,1796.5,1796.2,11.13445]
[1743762978105,0.7019,1796.5,1796.2,5.56715]
[1743762978299,0.7019,1796.5,1796.3,0.556715]
[1743762980576,0.7019,1796.5,1796.3,6.123665]
[1743762980926,0.702,1796.7,1796.5,11.13245]
[1743762981075,0.702,1796.7,1796.6,0.05565279]
[1743762981275,0.702,1796.7,1796.5,5.5662]
[1743762981740,0.702,1796.7,1796.5,11.13241]
[1743762982032,0.05,1796.9,1796.6,5.56606]
[1743762982393,0.05,1796.9,1796.5,6.679566]
[1743762982908,9.22104905,1796.7,1795.8,0.8148]
[1743762983080,0.75774278,1796.6,1796.1,5.56747]
[1743762983284,0.702,1796.4,1795.7,5.56857]
[1743762983489,9.22347905,1795.9,1795.2,5.5704]
[1743762983684,0.75774278,1795.8,1795.3,5.56994]
[1743762983888,0.75774278,1795.8,1795.3,1.114034]
[1743762984378,9.22437905,1795.6,1795.0,5.57101]
[1743762984713,0.702,1795.4,1795.0,5.57101]
[1743762985076,4.35712905,1795.4,1794.8,11.14311]
[1743762985283,4.35712905,1795.4,1794.9,11.14232]
[1743762985503,4.35712905,1795.4,1794.9,5.57115]
[1743762985709,4.35712905,1795.4,1794.8,11.14306]
[1743762986001,0.702,1795.4,1795.1,5.57072]
[1743762986203,0.702,1795.2,1794.6,32.28413]
[1743762986411,0.702,1795.2,1794.9,5.5711]
[1743762986715,0.702,1795.2,1794.6,26.712]
[1743762986916,0.702,1795.4,1795.2,5.57029]
[1743762987077,0.702,1795.6,1795.3,5.5699]
[1743762987483,0.702,1795.8,1795.0,12.24102]
[1743762987684,0.702,1795.8,1795.7,5.56885]
[1743762987886,0.702,1796.1,1795.7,6.682555]
[1743762988713,0.702,1796.1,1795.8,0.05567589]
[1743762988913,0.702,1796.1,1795.6,5.56913]
[1743762989121,0.702,1796.1,1795.6,11.1381]
[1743762989414,0.702,1796.1,1795.5,6.668]
[1743762989634,0.702,1796.1,1795.9,5.56805]
[1743762989812,0.702,1796.3,1796.0,5.56792]
[1743762990126,0.702,1796.6,1796.0,5.56781]
[1743762990305,0.702,1796.6,1795.9,0.7997]
[1743762990306,3.0,1796.5,1795.9,0.7997]
[1743762990612,6.32391278,1796.6,1795.9,6.36774]
[1743762990782,3.0,1796.5,1796.0,6.204694]
[1743762990978,0.75774278,1796.6,1796.1,5.56758]
[1743762991283,3.702,1796.6,1796.2,0.0556653]
[1743762991510,3.702,1796.6,1796.0,6.204694]
[1743762991814,3.702,1796.6,1795.7,0.874]
[1743762991815,6.26892,1796.4,1795.7,5.56868]
[1743762992116,0.702,1796.1,1795.6,6.2358]
[1743762992313,9.26964,1796.1,1795.3,5.57007]
[1743762992512,9.26964,1796.1,1795.2,5.57039]
[1743762992513,3.0,1795.8,1795.2,5.57039]
[1743762992715,0.702,1795.7,1795.2,5.57039]
[1743762992915,3.05574278,1795.6,1795.0,5.571]
[1743762993123,6.27192,1795.4,1794.6,27.5709]
[1743762993290,3.702,1795.4,1794.7,2.75709]
[1743762993489,0.60574278,1795.3,1794.7,8.32883]
[1743762993713,0.55,1795.3,1794.8,5.57154]
[1743762994112,3.05574278,1795.2,1794.7,2.75709]
[1743762994311,0.702,1795.1,1794.5,5.57253]
[1743762994512,0.702,1795.1,1794.5,11.14492]
[1743762994717,0.702,1795.1,1794.6,5.57224]
[1743762995027,0.702,1795.1,1794.6,5.57209]
[1743762995626,0.05574278,1795.0,1794.4,5.57273]
[1743762995929,0.05574278,1795.0,1794.5,11.702213]
[1743762996124,0.702,1794.8,1794.3,5.57313]
[1743762996300,6.2738,1794.8,1794.2,5.57347]
[1743762996513,0.60574278,1794.7,1794.1,5.62374]
[1743762996716,0.60574278,1794.7,1794.1,6.743526]
[1743762996914,3.702,1794.4,1794.1,0.05]
[1743762997123,3.75774278,1794.4,1794.1,0.05]
[1743762997625,0.702,1794.3,1794.1,0.05]
[1743762998126,1.11732972,1794.3,1794.1,0.05]
[1743762998331,3.60574278,1794.2,1794.1,0.05]
[1743762998492,3.05574278,1794.2,1794.1,0.05]
[1743762999903,11.24757819,1794.2,1794.1,0.05]
[1743763000120,9.82551,1794.2,1794.1,0.05]
[1743763000318,9.88125278,1794.2,1794.1,0.05]
[1743763000494,3.75774278,1794.2,1794.1,0.05]
[1743763002493,6.06,1794.6,1794.1,0.05]
[1743763002494,0.702,1794.5,1794.1,5.62382]
[1743763002830,0.702,1794.5,1794.2,6.19160242]
[1743763003034,0.702,1794.5,1794.2,0.562382]
[1743763003341,3.75774278,1794.5,1794.1,0.05]
[1743763003897,0.702,1794.5,1794.3,5.57306]
[1743763004100,0.702,1794.7,1794.3,5.57306]
[1743763004653,0.702,1794.9,1794.5,5.57239]
[1743763004799,0.702,1794.9,1794.4,5.57286]
[1743763004999,0.05574278,1794.8,1794.2,5.57348]
[1743763005252,0.702,1794.7,1794.1,5.62363]
[1743763005420,0.75774278,1794.7,1794.2,5.57345]
[1743763005819,6.32978278,1794.7,1794.1,0.05]
[1743763006019,11.90200278,1794.7,1794.1,0.05]
[1743763006222,7.76424028,1794.7,1794.1,5.62382]
[1743763006548,0.75774278,1794.7,1794.2,5.5733]
[1743763006845,0.702,1794.7,1794.1,5.62382]
[1743763007159,0.702,1794.7,1794.3,5.57312]
[1743763007448,1.10766329,1795.0,1794.5,5.57227]
[1743763007650,0.6982,1795.0,1794.7,5.57182]
[1743763007813,0.6982,1795.0,1794.7,6.686193]
[1743763008001,0.6982,1795.0,1794.7,1.114383]
[1743763008208,0.6982,1795.0,1794.7,6.686213]
[1743763008413,0.6982,1795.2,1795.0,5.57101]
[1743763008738,1.1666664,1795.5,1795.1,5.57048]
[1743763008912,0.75394278,1795.5,1795.0,11.698891]
[1743763009114,0.75394278,1795.5,1795.3,5.56985]
[1743763009347,0.6982,1795.5,1795.1,5.57072]
[1743763009716,0.6982,1795.5,1795.0,6.128121]
[1743763009717,3.6982,1795.5,1795.0,0.557101]
[1743763009917,0.6982,1795.5,1795.0,6.127911]
[1743763010116,0.6982,1795.5,1795.1,5.5707]
[1743763010354,0.6982,1795.5,1795.0,6.127911]
[1743763010515,1.16754279,1795.5,1794.9,5.57119]
[1743763010951,12.30674279,1795.5,1794.8,5.57152]
[1743763011266,5.56991,1795.4,1794.8,5.57152]
[1743763011548,0.05574278,1795.3,1794.8,5.57152]
[1743763011834,3.0,1795.1,1794.6,5.57196]
[1743763012060,3.05574278,1795.1,1794.6,6.129156]
[1743763012406,3.0,1795.1,1794.6,0.557196]
[1743763012611,0.6982,1795.2,1794.7,11.14348]
[1743763013028,0.6982,1795.2,1794.7,5.57174]
[1743763013222,0.6982,1795.2,1794.4,5.57289]
[1743763013450,0.6982,1795.2,1795.0,5.57102]
[1743763013653,0.6982,1795.2,1794.6,5.57224]
[1743763013881,0.6982,1795.2,1794.7,6.129154]
[1743763014079,0.6982,1795.5,1795.1,5.57072]
[1743763014244,0.6982,1795.5,1795.2,5.57028]
[1743763014438,0.6982,1795.5,1795.1,5.57056]
[1743763014638,0.6982,1795.5,1795.1,6.769535]
[1743763015167,0.6982,1795.5,1795.1,12.340075]
[1743763015556,0.6982,1795.5,1795.1,6.769515]
[1743763016359,0.6982,1795.5,1795.1,1.198975]
[1743763016563,3.75394278,1795.5,1795.0,5.57102]
[1743763016771,6.32343278,1795.5,1794.9,5.57131]
[1743763016971,6.32343278,1795.5,1794.8,5.5716]
[1743763016972,14.13996,1795.4,1794.8,5.5716]
[1743763017179,0.05574278,1795.3,1794.8,11.1431]
[1743763017376,3.0,1795.4,1794.9,5.57127]
[1743763017684,5.62586278,1795.3,1794.7,6.129094]
[1743763017847,3.0,1795.1,1794.6,5.57211]
[1743763018046,3.05574278,1795.1,1794.5,5.57254]
[1743763018383,8.62657278,1795.1,1794.5,11.14498]
[1743763018578,3.05574278,1795.1,1794.5,5.57244]
[1743763018883,8.62647278,1795.1,1794.6,0.557244]
[1743763019181,3.0,1794.8,1794.3,5.57311]
[1743763019475,0.6982,1795.0,1794.6,5.57216]
[1743763019644,0.6982,1795.0,1794.6,5.57215]
[1743763019845,0.6982,1795.0,1794.7,5.57193]
[1743763020045,0.6982,1795.0,1794.6,5.57215]
[1743763020272,0.6982,1795.0,1794.6,6.686622]
[1743763020481,0.6982,1795.0,1794.9,5.57134]
[1743763020668,0.75394278,1795.0,1794.4,5.57281]
[1743763020857,0.6982,1795.0,1794.6,5.57204]
[1743763021182,0.05574278,1794.9,1794.3,5.57315]
[1743763021482,5.62709278,1794.9,1794.3,11.14609]
[1743763021685,0.6982,1794.7,1794.2,5.57344]
[1743763021854,0.75394278,1794.7,1794.2,5.57344]
[1743763022059,0.75394278,1794.7,1794.2,1.119708]
[1743763022260,0.6982,1794.7,1794.3,5.57306]
[1743763022459,0.6982,1794.7,1794.4,0.055722]
[1743763022784,0.6982,1794.9,1794.5,5.57258]
[1743763022979,0.6982,1794.9,1794.4,11.14561]
[1743763022980,3.6982,1794.9,1794.4,11.14561]
[1743763023287,0.6982,1794.9,1794.6,5.57212]
[1743763023576,0.6982,1794.9,1794.5,6.687021]
[1743763023786,0.6982,1794.9,1794.5,5.57244]
[1743763024143,0.6982,1795.4,1794.6,0.05571588]
[1743763024383,0.6982,1795.4,1795.0,5.57084]
[1743763024595,0.6982,1795.4,1795.1,5.57054]
[1743763024777,0.6982,1795.4,1795.1,6.765612]
[1743763024945,0.6982,1795.4,1795.1,6.765752]
[1743763025288,0.6982,1795.7,1795.5,5.56947]
[1743763025470,0.75394278,1795.9,1795.8,5.56854]
[1743763025691,7.00357329,1796.3,1795.9,5.56814]
[1743763025692,0.6982,1796.1,1795.9,5.56814]
[1743763025982,0.6982,1796.1,1795.6,5.56908]
[1743763025983,0.6982,1796.1,1795.7,5.56877]
[1743763026144,0.6982,1796.1,1795.8,0.05567868]
[1743763026354,0.6982,1796.1,1795.8,5.62407615]
[1743763026558,0.6982,1796.1,1795.7,5.56882]
[1743763026796,0.6982,1796.1,1795.7,5.56868]
[1743763026992,0.6982,1796.1,1795.8,5.56854]
[1743763027417,0.6982,1796.3,1795.9,5.56817]
[1743763027690,0.6982,1796.3,1795.9,5.56806]
[1743763027893,0.6982,1796.3,1795.8,6.682232]
[1743763027894,0.6982,1796.3,1795.8,1.113722]
[1743763028100,0.6982,1796.6,1796.0,5.56791]
[1743763028265,6.32017278,1796.6,1796.0,5.56791]
[1743763028603,0.6982,1796.6,1796.1,5.56758]
[1743763028773,0.6982,1796.6,1796.0,5.56772]
[1743763028982,5.62214278,1796.5,1795.9,6.39712]
[1743763029185,3.56221428,1796.4,1795.9,5.56804]
[1743763029386,3.0,1796.4,1796.0,5.56782]
[1743763029694,3.0,1796.4,1795.9,5.56804]
[1743763029880,3.0,1796.4,1795.7,5.56867]
[1743763029881,0.6982,1796.2,1795.7,5.56867]
[1743763030207,0.6982,1796.2,1795.8,5.56852]
[1743763030504,0.75394278,1796.2,1795.6,5.56887]
[1743763030697,0.75394278,1796.2,1795.7,5.56883]
[1743763030896,3.0,1796.1,1795.6,5.56887]
[1743763031108,3.0,1796.1,1795.5,5.56947]
[1743763031408,3.0,1796.1,1795.5,6.858067]
[1743763031616,8.56775,1796.1,1795.5,6.858067]
[1743763031818,3.6982,1795.9,1795.4,5.56976]
[1743763031994,3.75394278,1795.9,1795.4,5.56967]
[1743763032478,0.6982,1795.9,1795.5,5.62511776]
[1743763032680,0.6982,1795.9,1795.6,6.18735494]
[1743763032973,0.6982,1795.9,1795.6,6.13167178]
[1743763034354,0.6982,1795.9,1795.4,5.56969]
[1743763034355,3.6982,1795.9,1795.4,5.56969]
[1743763034526,3.75394278,1795.9,1795.4,5.56969]
[1743763034722,3.75394278,1795.9,1795.3,5.57001]
[1743763034928,0.55,1795.8,1795.4,0.05568729]
[1743763035124,0.55,1795.8,1795.3,5.56991]
[1743763035437,0.55,1795.8,1795.4,0.61268255]
[1743763035641,3.75394278,1795.9,1795.4,6.126651]
[1743763035842,0.75394278,1795.9,1795.4,6.18226248]
[1743763036053,0.75394278,1795.9,1795.4,11.75186248]
[1743763036358,0.6982,1795.9,1795.5,5.56919]
[1743763036517,0.6982,1795.9,1795.5,0.6126181]
[1743763036718,0.75394278,1795.9,1795.4,5.56978]
[1743763037250,0.75394278,1795.9,1795.4,11.13946]
[1743763037436,0.75394278,1795.9,1795.4,5.56967]
[1743763037644,3.75394278,1795.9,1795.3,5.57008]
[1743763037846,6.11876,1795.8,1795.2,5.57038]
[1743763038045,0.55,1795.5,1795.1,1.195072]
[1743763038208,3.60574278,1795.5,1795.0,11.14177]
[1743763038412,3.60574278,1795.5,1794.9,26.736]
[1743763038723,0.6982,1795.8,1795.2,5.57025]
[1743763038939,0.6982,1795.8,1795.4,5.56956]
[1743763039152,0.6982,1795.8,1795.2,0.83]
[1743763039363,0.6982,1796.0,1795.7,5.56885]
[1743763039653,0.6982,1796.0,1795.8,0.556885]
[1743763040238,0.6982,1796.0,1795.8,6.125415]
[1743763040447,0.05574278,1796.2,1795.8,6.18109399]
[1743763040628,0.05574278,1796.2,1795.8,0.556885]
[1743763041447,3.0,1796.1,1795.6,11.13812]
[1743763041628,3.0,1796.1,1795.7,5.56875]
[1743763041830,3.0,1796.1,1795.8,0.05567889]
[1743763042038,3.0,1796.1,1795.7,11.13743]
[1743763042251,3.0,1796.1,1795.7,5.56868]
[1743763042456,3.0,1796.1,1795.8,0.556868]
[1743763044374,3.0,1796.1,1795.8,6.125408]
[1743763044530,1.30394278,1796.3,1795.9,5.6238089]
[1743763044727,0.6982,1796.3,1796.0,5.56792]
[1743763045061,0.6982,1796.5,1796.3,5.56693]
[1743763045231,0.10574278,1796.9,1796.8,5.56544]
[1743763045426,0.05,1796.9,1796.8,5.62109578]
[1743763046123,0.05,1796.9,1796.8,5.56544]
[1743763047332,1e-05,1796.9,1796.8,6.44507577]
[1743763047534,0.6982,1797.8,1797.4,5.56346]
[1743763047854,0.6982,1797.8,1797.5,5.56326]
[1743763048057,0.6982,1797.8,1797.4,5.56346]
[1743763048261,0.6982,1797.8,1797.4,11.12684]
[1743763048575,0.6982,1797.8,1797.4,5.56338]
[1743763048775,0.05,1797.9,1797.6,5.56293]
[1743763048954,0.05,1797.9,1797.3,6.38789]
[1743763049160,0.05,1797.9,1797.3,5.56379]
[1743763049461,3.10574278,1797.9,1797.3,6.759769]
[1743763049862,8.66782278,1797.9,1797.2,11.96]
[1743763050062,3.05,1797.9,1797.3,5.56373]
[1743763050357,3.05,1797.9,1797.4,5.56358]
[1743763050561,0.55,1797.8,1797.2,11.96015]
[1743763050958,6.16817278,1797.8,1797.2,11.96015]
[1743763051259,13.20880906,1797.8,1797.2,11.96015]
[1743763051566,0.6982,1797.7,1797.2,11.96015]
[1743763051773,3.6982,1797.7,1797.0,0.8404]
[1743763051955,3.0,1797.5,1797.0,5.56474]
[1743763052161,3.0,1797.5,1796.8,0.8002]